[Event "ETCC Open 2023"]
[Site "Budva"]
[Date "2023.11.11"]
[Round "1.35"]
[White "Pelletier, Yannick"]
[Black "Vrolijk, Liam"]
[Result "1/2-1/2"]
[ECO "E11"]
[WhiteElo "2505"]
[BlackElo "2569"]
[Annotator "TA"]
[PlyCount "90"]
[EventDate "2023.11.10"]
[EventType "team-tourn"]
[EventCountry "MNE"]
[SourceTitle "playchess.com"]
[Source "ChessBase"]
[SourceQuality "1"]
[WhiteTeam "Switzerland"]
[BlackTeam "Netherlands"]
[WhiteTeamCountry "SUI"]
[BlackTeamCountry "NED"]
[TimeControl "40/5400+30:1800+30"]

{[%evp 16,90,20,0,3,-1,0,0,0,-11,-7,-14,-10,-8,0,0,0,0,0,-9,-11,-9,-8,-7,0,-2,-2,-3,-3,-25,-11,-8,-8,-25,0,-39,-30,-45,-36,-53,-53,-56,-45,-45,-46,-62,-52,-53,-52,-57,-52,-64,-44,-58,-63,-66,-51,-64,-36,-36,-19,-19,-19,-19,-22,-41,-41,-35,-27,-27,-19,-27,-27,-27,-33,-34,0]} 1. d4 {[%emt 0:00:06]} Nf6 {[%emt 0:00:14]} 2. c4 {[%emt 0:00:14]} e6 {[%emt 0:00:10]} 3. Nf3 {[%emt 0:00:12]} d5 {[%emt 0:00:11]} 4. g3 {[%emt 0:00:19]} Bb4+ {[%emt 0:00:13]} 5. Bd2 {[%emt 0:00:24]} Be7 {[%emt 0:00:09]} 6. Bg2 {[%emt 0:00:27]} O-O {[%emt 0:00:19]} 7. O-O {[%emt 0:00:32]} Nbd7 {[%emt 0:00:25]} 8. Qc2 {[%emt 0:04:00]} c6 {[%emt 0:00:11]} 9. Bg5 {[%emt 0:04:41]} b6 {[%emt 0:04:56] E11: Bogo-Indian.} 10. Nbd2 {[%emt 0:00:18]} h6 {[%emt 0:03:30]} 11. Bxf6 {[%emt 0:00:24]} Nxf6 {[%emt 0:00:09] The position is equal.} 12. Ne5 {[%emt 0:15:46]} Bb7 {[%emt 0:01:14]} 13. cxd5 {[%emt 0:00:09]} cxd5 {[%emt 0:00:33]} 14. Rfc1 {[%emt 0:00:04]} Rc8 {[%emt 0:06:03]} 15. Qa4 {[%emt 0:00:57]} a6 {[%emt 0:02:28]} 16. e3 {[%emt 0:14:06] [#]} Qd6 $146 {[%emt 0:06:32]} ({Predecessor:} 16... Bd6 17. f4 Rc7 18. Bf1 Qc8 19. Qd1 Qb8 20. Rxc7 Bxc7 21. Rc1 Rc8 22. Nc6 Bxc6 23. Rxc6 {1-0 Istratescu,A (2596)-Svane,R (2555) London Classic Super rapid 8th 2016 (5)}) 17. a3 {[%emt 0:07:55]} Rc7 {[%emt 0:08:28]} 18. Bf1 {[%emt 0:08:49]} Rfc8 {[%emt 0:07:06]} 19. Qd1 {[%emt 0:00:17]} Nd7 {[%emt 0:08:28]} 20. f4 {[%emt 0:09:16]} Nf6 {[%emt 0:10:18]} 21. Bd3 {[%emt 0:04:25]} Ne4 {[%emt 0:01:27]} 22. Nb3 {[%emt 0:00:29]} a5 {[%emt 0:05:50]} 23. Rxc7 {[%emt 0:02:13]} Rxc7 {[%emt 0:00:56]} 24. Rc1 {[%emt 0:05:23]} Rxc1 {[%emt 0:03:44]} 25. Qxc1 {[%emt 0:00:32]} (25. Nxc1 $5 {[%cal Rd1h5]} f6 26. Ng6 $11) 25... f6 {[%emt 0:01:22]} 26. Nf3 {[%emt 0:06:29]} Qc6 {[%emt 0:02:25]} 27. Qxc6 {[%emt 0:09:34]} Bxc6 {[%emt 0:00:10]} 28. Nbd2 {[%emt 0:00:54]} b5 {[%emt 0:06:21][%cal Bb6b5,Bb5b4][%mdl 32]} 29. Nb1 {[%emt 0:02:56]} Kf7 {[%emt 0:05:52]} 30. Kf1 {[%emt 0:00:42]} Nd6 {[%emt 0:01:31]} 31. b3 {[%emt 0:00:14]} Ne4 {[%emt 0:01:24]} 32. Ke2 {[%emt 0:01:54]} Bd6 {[%emt 0:00:42]} 33. Ne1 {[%emt 0:01:14]} b4 {[%emt 0:02:32]} 34. a4 {[%emt 0:00:29]} Bc7 {[%emt 0:01:26]} 35. Nf3 {[%emt 0:00:35]} Ke7 {[%emt 0:00:42]} 36. Nfd2 {[%emt 0:00:14]} Nxd2 {[%emt 0:01:18]} 37. Nxd2 $15 {[%emt 0:00:09][%mdl 4096] Endgame KBB-KBN} e5 {[%emt 0:00:19]} 38. fxe5 {[%emt 0:01:28]} fxe5 {[%emt 0:00:07]} 39. dxe5 {[%emt 0:00:06]} Bxe5 {[%emt 0:00:07]} 40. Nf3 {[%emt 0:00:04]} Kd6 {[%emt 0:00:20]} 41. Nd4 {[%emt 0:06:54]} Bd7 {[%emt 0:02:02]} 42. Kf3 {[%emt 0:02:23]} Kc5 {[%emt 0:04:56]} 43. Bf5 {[%emt 0:00:34]} Be8 {[%emt 0:03:13]} 44. Ne6+ {[%emt 0:00:24]} Kd6 {[%emt 0:00:08] Threatens to win with ...g6.} 45. Nd4 {[%emt 0:00:15]} Kc5 {[%emt 0:32:29] Weighted Error Value: White=0.08 (flawless) /Black=0.05 (flawless)} 1/2-1/2

[Event "ETCC Open 2023"]
[Site "Budva"]
[Date "2023.11.11"]
[Round "1.36"]
[White "Van Foreest, Lucas"]
[Black "Kurmann, Oliver"]
[Result "1/2-1/2"]
[ECO "B30"]
[WhiteElo "2540"]
[BlackElo "2436"]
[Annotator "RC"]
[PlyCount "61"]
[EventDate "2023.11.10"]
[EventType "team-tourn"]
[EventCountry "MNE"]
[SourceTitle "playchess.com"]
[Source "ChessBase"]
[SourceQuality "1"]
[WhiteTeam "Netherlands"]
[BlackTeam "Switzerland"]
[WhiteTeamCountry "NED"]
[BlackTeamCountry "SUI"]
[TimeControl "40/5400+30:1800+30"]

1. e4 {[%emt 0:00:08]} c5 {[%emt 0:00:08]} 2. Nf3 {[%emt 0:00:08]} Nc6 {[%emt 0:00:06]} 3. Bb5 {[%emt 0:00:24]} e6 {[%emt 0:00:12]} 4. Bxc6 {[%emt 0:00:53]} bxc6 {[%emt 0:00:09]} 5. d3 {[%emt 0:00:35]} Qc7 {[%emt 0:01:56]} 6. O-O {[%emt 0:02:32]} Ne7 {[%emt 0:02:09]} 7. Re1 {[%emt 0:04:45]} e5 {[%emt 0:16:24]} 8. c3 {[%emt 0:00:17]} Ng6 {[%emt 0:00:14]} 9. d4 {[%emt 0:00:56]} d6 {[%emt 0:00:16]} 10. Be3 {[%emt 0:02:26]} Be7 {[%emt 0:05:47]} 11. dxc5 {[%emt 0:02:54]} dxc5 {[%emt 0:00:09]} 12. Nbd2 {[%emt 0:03:27]} O-O {[%emt 0:01:30]} 13. Qa4 {[%emt 0:15:34]} Rb8 {[%emt 0:23:43]} 14. Rab1 {[%emt 0:00:08]} Rb5 {[%emt 0:09:35]} 15. a3 {[%emt 0:07:42]} Be6 {[%emt 0:08:37]} 16. b4 {[%emt 0:24:25]} cxb4 {[%emt 0:15:43]} 17. cxb4 {[%emt 0:00:10]} Ra8 {[%emt 0:06:07]} 18. Rec1 {[%emt 0:01:46]} Qb7 {[%emt 0:01:19]} 19. Qc2 {[%emt 0:01:15]} a5 {[%emt 0:01:27]} 20. bxa5 {[%emt 0:04:43]} Bxa3 {[%emt 0:01:33]} 21. Qxc6 {[%emt 0:01:03]} Qxc6 {[%emt 0:00:16]} 22. Rxc6 {[%emt 0:00:05]} Raxa5 {[%emt 0:02:16]} 23. Rxb5 {[%emt 0:00:17]} Rxb5 {[%emt 0:00:02]} 24. Ng5 {[%emt 0:01:11]} Bd7 {[%emt 0:01:06]} 25. Ra6 {[%emt 0:00:38]} Be7 {[%emt 0:01:05]} 26. Ra7 {[%emt 0:02:32]} Nf8 {[%emt 0:00:18]} 27. h3 {[%emt 0:00:21]} Bc5 {[%emt 0:01:04]} 28. Bxc5 {[%emt 0:00:34]} Rxc5 {[%emt 0:00:01]} 29. Ra8 {[%emt 0:01:40]} Rc8 {[%emt 0:00:47]} 30. Rxc8 {[%emt 0:00:05]} Bxc8 {[%emt 0:00:01]} 31. Ngf3 {[%emt 0:00:08]} 1/2-1/2

[Event "ETCC Open 2023"]
[Site "Budva"]
[Date "2023.11.11"]
[Round "1.37"]
[White "Sarana, Alexey"]
[Black "Gretarsson, Hjorvar Steinn"]
[Result "1-0"]
[ECO "D58"]
[WhiteElo "2669"]
[BlackElo "2518"]
[Annotator "TA"]
[PlyCount "145"]
[EventDate "2023.11.10"]
[EventType "team-tourn"]
[EventCountry "MNE"]
[SourceTitle "playchess.com"]
[Source "ChessBase"]
[SourceQuality "1"]
[WhiteTeam "Serbia"]
[BlackTeam "Iceland"]
[WhiteTeamCountry "SRB"]
[BlackTeamCountry "ISL"]
[TimeControl "40/5400+30:1800+30"]

{[%evp 19,145,0,6,0,5,15,4,14,14,5,19,21,47,17,7,0,33,51,21,5,3,7,36,19,19,0,0,0,0,0,0,0,0,0,0,0,0,0,0,0,8,23,12,4,37,0,0,-3,0,-288,0,0,0,0,68,68,59,64,72,68,85,85,85,85,121,121,121,121,121,121,121,115,116,116,117,116,129,129,149,149,149,149,149,149,149,149,149,116,115,115,115,115,115,93,115,93,220,93,115,115,115,115,115,115,194,194,208,216,255,93,93,93,670,93,93,93,12850,12851,12790,11589,7383,6737,6075,5065,29980,29981,29983,29984]} 1. d4 {[%emt 0:00:03]} Nf6 {[%emt 0:00:08]} 2. c4 {[%emt 0:00:05]} e6 {[%emt 0:00:09]} 3. Nf3 {[%emt 0:00:04]} d5 {[%emt 0:00:44]} 4. Nc3 {[%emt 0:00:06]} Be7 {[%emt 0:00:33]} 5. Bg5 {[%emt 0:00:42]} h6 {[%emt 0:01:28]} 6. Bh4 {[%emt 0:00:06]} O-O {[%emt 0:02:00]} 7. e3 {[%emt 0:00:54]} b6 {[%emt 0:08:12]} 8. Qc2 {[%emt 0:01:08]} Bb7 {[%emt 0:03:32]} 9. Bxf6 {[%emt 0:00:54]} Bxf6 {[%emt 0:00:08]} 10. cxd5 {[%emt 0:00:03]} exd5 {[%emt 0:00:43]} 11. Rd1 {[%emt 0:00:04] seems to push 11.0-0-0 aside. D58: Queen's Gambit Declined: Tartakower Defence.} Nd7 {[%emt 0:08:24]} 12. g3 {[%emt 0:01:33] [#]} c5 $146 {[%emt 0:12:18]} ({Predecessor:} 12... Re8 13. Bg2 a6 14. O-O Be7 15. Ne5 Nf6 16. Qb3 Qd6 17. e4 Rad8 18. a3 c5 19. Nxd5 Nxd5 {½-½ Grischuk,A (2732)-Erigaisi,A (2712) Tata Steel India blitz 2023 (4)}) 13. Bg2 {[%emt 0:10:14] The position is equal.} Re8 {[%emt 0:06:12]} 14. O-O {[%emt 0:02:11]} Rc8 {[%emt 0:05:40][%cal Ba8c8,Bc8c5,Bc5c4][%mdl 32]} 15. h4 {[%emt 0:16:36]} Nf8 {[%emt 0:05:42]} (15... b5 {is more complex.} 16. dxc5 Nxc5 17. Nxb5 Ba6) 16. Rd2 {[%emt 0:08:10]} Ne6 {[%emt 0:06:06]} 17. Rfd1 {[%emt 0:00:58]} b5 {[%emt 0:09:24]} 18. dxc5 {[%emt 0:18:11]} Rxc5 {[%emt 0:06:10] ...b4 is the strong threat.} 19. Qb3 {[%emt 0:01:39] White wants to play Ne4.} Bxc3 {[%emt 0:04:03]} 20. bxc3 {[%emt 0:00:06]} Qc8 {[%emt 0:03:36]} 21. Nd4 {[%emt 0:02:00]} a6 {[%emt 0:00:50]} 22. Ne2 {[%emt 0:07:14][%cal Rg2d5]} Rc4 {[%emt 0:00:38]} 23. Bxd5 {[%emt 0:03:38]} Nc5 {[%emt 0:02:37]} 24. Qc2 {[%emt 0:02:16]} Bxd5 {[%emt 0:01:49]} 25. Rxd5 {[%emt 0:00:41]} Ne4 {[%emt 0:00:58]} 26. R1d4 {[%emt 0:03:25]} Rxd4 $1 {[%emt 0:07:03]} 27. Nxd4 {[%emt 0:11:25]} Qb7 {[%emt 0:03:52]} 28. Rf5 {[%emt 0:04:29]} Rc8 {[%emt 0:00:48]} 29. Ne2 {[%emt 0:01:21]} b4 {[%emt 0:00:42]} 30. c4 {[%emt 0:00:46]} Nd6 {[%emt 0:00:23][%csl LRc4,LRf5]} 31. Rf4 {[%emt 0:00:10]} Qc7 {[%emt 0:00:37]} (31... Qc6 {looks sharper.} 32. Rd4 Nb5 33. Rd1 Nc3) 32. Qb3 {[%emt 0:03:49]} (32. Rd4 $5 {[%cal Rc4c5]}) 32... a5 {[%emt 0:00:26]} 33. Nd4 {[%emt 0:00:03]} Qxc4 {[%emt 0:00:29]} 34. Qa4 $2 {[%emt 0:00:01][%mdl 8192]} (34. Nf5 $11 {and White is okay.} Qxb3 35. axb3 Rc1+ 36. Kg2) 34... Qc1+ $2 {[%emt 0:00:33]} (34... Qd5 $19 {( -> ...Rc1+)} 35. Qd1 Qxa2) 35. Kg2 {[%emt 0:00:12]} Qc7 {[%emt 0:00:32]} 36. Kh2 {[%emt 0:01:58]} Rd8 {[%emt 0:00:26]} ({Black should play} 36... Nc4 $11) 37. Nc6 $1 $14 {[%emt 0:00:35]} Rc8 {[%emt 0:00:20] Hoping for ...g5.} 38. Nxa5 {[%emt 0:00:33]} Ra8 {[%emt 0:00:41]} 39. Qc6 $1 {[%emt 0:00:03]} Qxa5 {[%emt 0:00:31]} 40. Qxd6 {[%emt 0:00:01] White is more active.} Qxa2 {[%emt 0:00:20]} 41. Qxb4 {[%emt 0:30:06][%mdl 4096] Endgame KQR-KQR} (41. Rxb4 {is a self mate.} Qxf2+ 42. Kh3 Qf1+ 43. Kg4 h5+ 44. Kg5 Ra5+) 41... Rc8 {[%emt 0:30:40]} 42. Qb5 {[%emt 0:01:02]} Rd8 {[%emt 0:00:00]} 43. h5 {[%emt 0:00:00]} Qa7 {[%emt 0:00:00]} 44. Re4 {[%emt 0:00:00]} Qa8 {[%emt 0:00:00]} 45. Qf5 {[%emt 0:00:00]} Rd1 {[%emt 0:00:00][%cal Bd8d1,Bd1f1,Bf1b1][%mdl 32]} 46. Qf3 {[%emt 0:00:00]} Rf1 {[%emt 0:00:00][%cal Of1f2]} 47. Rf4 {[%emt 0:00:00]} (47. Kg2 {simplifies} Ra1 48. Rf4 Qxf3+ 49. Kxf3 g6 50. hxg6 fxg6 51. Rd4) 47... Qa2 {[%emt 0:00:00]} 48. Kg2 {[%emt 0:00:00]} Rb1 {[%emt 0:00:00] [#]} 49. Rxf7 $3 {[%emt 0:00:00][%mdl 576] Deflection} Qxf7 {[%emt 0:00:00]} 50. Qa8+ {[%emt 0:00:00]} Kh7 {[%emt 0:00:00]} 51. Qe4+ {[%emt 0:00:00]} Kh8 {[%emt 0:00:00]} 52. Qxb1 {[%emt 0:00:00] And now Qb8+ would win.} Qxh5 $16 {[%emt 0:00:00] KQ-KQ} 53. Qd3 {[%emt 0:00:00]} Qe8 {[%emt 0:00:00]} 54. Qd5 {[%emt 0:00:00]} g6 {[%emt 0:00:00]} 55. Qd4+ {[%emt 0:00:00]} Kg8 {[%emt 0:00:00]} 56. Qf6 {[%emt 0:00:00]} Qe4+ {[%emt 0:00:00]} 57. Kh2 {[%emt 0:00:00]} Qc2 {[%emt 0:00:00]} (57... h5 $16 58. Qd4 Qc2) 58. Kh3 {[%emt 0:00:00]} (58. Qe6+ $18 {and the rest is easy.} Kg7 59. Kg2) 58... Qb1 {[%emt 0:00:23]} 59. Qe6+ {[%emt 0:00:00]} Kg7 {[%emt 0:01:27]} 60. Qe7+ {[%emt 0:00:00]} Kg8 {[%emt 0:00:15]} 61. Kg2 {[%emt 0:00:00] Wards off Qh1+} h5 {[%emt 0:00:53]} (61... Qb6 $16 62. e4 Qd4 63. Qe6+ Kg7 64. Qe7+ Kg8 65. Qe6+ Kg7) 62. e4 $18 {[%emt 0:00:00]} Qd3 {[%emt 0:02:08]} 63. Qe6+ {[%emt 0:00:00]} Kg7 {[%emt 0:00:32]} 64. Qe5+ $2 {[%emt 0:00:00]} (64. e5 $1 $18 {White wants to mate with Qf6+.} Qe4+ 65. Kh2) 64... Kh7 $16 {[%emt 0:00:21]} 65. Qd5 {[%emt 0:00:00]} Qe2 $2 {[%emt 0:00:21][%mdl 8192]} (65... Qb1 $16 66. g4 hxg4) 66. Qf7+ $2 {[%emt 0:00:00]} (66. e5 $1 $18 {is the precise move to win. Intending Qf7+ and mate.} Kh6 67. Qd4) 66... Kh6 {[%emt 0:00:09]} 67. Qf3 {[%emt 0:00:00]} Qb2 $2 {[%emt 0:02:51][%mdl 8192] [#]} (67... Qc4 $16 68. e5 Qe6) 68. Qf8+ $1 $18 {[%emt 0:01:12]} Kh7 {[%emt 0:00:04] [#]} 69. Qe7+ $1 {[%emt 0:00:04]} Kg8 {[%emt 0:00:28]} 70. e5 {[%emt 0:00:17][%cal Be4e5,Be5e6][%mdl 32] White threatens e6 and mate.} Qc2 {[%emt 0:02:36]} 71. Qe6+ {[%emt 0:00:27]} Kh7 {[%emt 0:00:28]} 72. Qf7+ {[%emt 0:00:05]} Kh6 {[%emt 0:00:06]} 73. e6 {[%emt 0:01:12] Weighted Error Value: White=0.19 (very precise) /Black=0.16 (very precise)} 1-0

[Event "ETCC Open 2023"]
[Site "Budva"]
[Date "2023.11.11"]
[Round "1.38"]
[White "Stefansson, Vignir Vatnar"]
[Black "Indjic, Aleksandar"]
[Result "0-1"]
[ECO "E05"]
[WhiteElo "2483"]
[BlackElo "2601"]
[Annotator "TA"]
[PlyCount "120"]
[EventDate "2023.11.10"]
[EventType "team-tourn"]
[EventCountry "MNE"]
[SourceTitle "playchess.com"]
[Source "ChessBase"]
[SourceQuality "1"]
[WhiteTeam "Iceland"]
[BlackTeam "Serbia"]
[WhiteTeamCountry "ISL"]
[BlackTeamCountry "SRB"]
[TimeControl "40/5400+30:1800+30"]

{[%evp 12,120,15,12,20,12,0,22,17,18,24,4,4,6,9,0,0,0,1,15,9,6,12,4,4,7,29,7,7,0,14,-27,-28,-20,-27,-29,7,9,10,10,22,13,18,12,20,9,46,16,18,0,0,-27,-24,-25,-5,-53,-53,-55,-44,-98,-51,-51,-50,-57,-8,-30,-33,-25,-39,-44,-12,-26,0,-39,-33,-35,-35,-22,-46,-81,-78,-96,-105,-147,-147,-156,-136,-193,-192,-191,-192,-191,-204,-192,-194,-193,-185,-289,-292,-265,-276,-291,-285,-282,-258,-373,-380,-781,-603,-590,-579]} 1. d4 {[%emt 0:00:04]} Nf6 {[%emt 0:00:26]} 2. c4 {[%emt 0:00:11]} e6 {[%emt 0:00:55]} 3. Nf3 {[%emt 0:00:26]} d5 {[%emt 0:01:24]} 4. g3 {[%emt 0:02:26]} Be7 {[%emt 0:02:33]} 5. Bg2 {[%emt 0:00:11]} O-O {[%emt 0:00:11]} 6. O-O {[%emt 0:06:12]} dxc4 {[%emt 0:00:41]} 7. Qc2 {[%emt 0:00:05]} b6 {[%emt 0:00:45] E05: Open Catalan: 5 Nf3 Be7.} 8. Bg5 {[%emt 0:00:19]} Nd5 {[%emt 0:00:41]} 9. Bxe7 {[%emt 0:00:11]} Qxe7 {[%emt 0:00:11] The position is equal.} 10. Rc1 {[%emt 0:13:03][%cal Ob1d2]} b5 {[%emt 0:08:50]} 11. b3 {[%emt 0:01:11]} (11. a4 $5 {[%cal Ra4b5]}) 11... cxb3 {[%emt 0:00:07] [#]} 12. axb3 $146 {[%emt 0:00:46]} ({Predecessor:} 12. Qxb3 a6 13. Ne5 Bb7 14. a4 b4 15. a5 Ra7 16. e4 Nf6 17. Nd2 Rd8 18. Qe3 {1-0 Arabidze,M (2398)-Buksa,N (2410) EU-chT (Women) 22nd 2019 (8.3)}) 12... c6 {[%emt 0:06:57]} 13. Ne5 {[%emt 0:09:57][%cal Og2d5]} Bb7 {[%emt 0:00:22]} 14. Nd2 {[%emt 0:02:37]} Nb4 {[%emt 0:05:47]} 15. Qc3 {[%emt 0:04:29]} N8a6 {[%emt 0:00:38]} 16. Ne4 {[%emt 0:02:57]} f6 {[%emt 0:04:15]} 17. Nd3 {[%emt 0:04:09]} Nxd3 {[%emt 0:00:07]} 18. Qxd3 {[%emt 0:00:14]} Rfd8 {[%emt 0:00:45]} (18... Nb4 $5 {[%cal Rb4d3]} 19. Qe3 Rfe8 $11) 19. Qe3 {[%emt 0:11:25]} e5 {[%emt 0:00:19]} 20. dxe5 {[%emt 0:09:04]} Qxe5 {[%emt 0:00:30]} 21. Qc3 {[%emt 0:09:54]} Qxc3 {[%emt 0:08:50]} 22. Nxc3 {[%emt 0:01:30]} Nc5 {[%emt 0:00:08]} 23. Rab1 {[%emt 0:01:10]} Rac8 {[%emt 0:00:12]} 24. b4 {[%emt 0:01:17]} Na6 {[%emt 0:00:08]} 25. e3 {[%emt 0:02:00]} Kf8 {[%emt 0:00:52]} 26. Ne2 {[%emt 0:00:56][%mdl 1024] White has compensation.} Rd6 {[%emt 0:07:11]} 27. Nd4 {[%emt 0:00:28]} g6 {[%emt 0:00:07]} 28. g4 {[%emt 0:11:44]} Ke7 {[%emt 0:01:36]} 29. h4 {[%emt 0:00:04]} Kd7 {[%emt 0:01:16]} 30. h5 {[%emt 0:00:21]} gxh5 {[%emt 0:00:42]} 31. Nf5 {[%emt 0:02:26]} ({Much weaker is} 31. gxh5 Rg8 32. f3 Rd5 $15) 31... Rd2 {[%emt 0:02:11]} 32. gxh5 {[%emt 0:00:05]} Rg8 {[%emt 0:01:27][%cal Oc6c5]} 33. Ng3 {[%emt 0:01:38]} (33. Kf1 $1 $11) 33... Kc7 $15 {[%emt 0:05:13]} 34. Kf1 $1 {[%emt 0:00:37]} ({Don't go for} 34. Ne4 $2 Rxg2+ 35. Kxg2 c5 $19) 34... Rdd8 {[%emt 0:01:23]} 35. Be4 {[%emt 0:00:53]} (35. Ne4 $15) 35... Rd7 {[%emt 0:00:10]} ({Black should try} 35... Rg4 $17) 36. Nf5 {[%emt 0:01:00]} Kb6 {[%emt 0:06:47]} 37. Nd4 {[%emt 0:00:37]} Rc7 {[%emt 0:00:07]} (37... Rg5 $15) 38. Ke2 $11 {[%emt 0:00:45]} Re8 {[%emt 0:09:16]} 39. Bf3 {[%emt 0:01:56]} Re5 {[%emt 0:02:29]} 40. Kd2 {[%emt 0:00:31]} Nb8 {[%emt 0:07:33]} 41. Be2 {[%emt 0:01:42]} Rce7 {[%emt 0:08:46]} 42. Rc3 {[%emt 0:00:29]} a5 {[%emt 0:00:45]} 43. bxa5+ {[%emt 0:03:47]} Kxa5 {[%emt 0:00:14]} 44. f4 $1 {[%emt 0:03:03]} Rd5 {[%emt 0:00:42]} 45. Bf3 {[%emt 0:00:18]} Rd8 {[%emt 0:00:34] Black continues to play with concentration.} 46. Rd3 {[%emt 0:00:33] [#] Nb3+ would be deadly.} Kb6 {[%emt 0:00:24]} 47. Kc2 {[%emt 0:05:24][%cal Od4b5]} Na6 {[%emt 0:38:33]} 48. Rdb3 {[%emt 0:05:54]} Nc7 {[%emt 0:00:00]} 49. h6 {[%emt 0:03:26]} (49. Rd1 $17) 49... Nd5 $19 {[%emt 0:00:00]} 50. Bxd5 {[%emt 0:01:06]} Rxd5 {[%emt 0:00:00]} 51. Rg1 {[%emt 0:00:02]} Ba6 {[%emt 0:00:00] And now ...c5 would win.} 52. Rg7 {[%emt 0:00:39]} Red7 {[%emt 0:00:00] Hoping for ...c5.} 53. Nf3 {[%emt 0:01:39]} Bc8 {[%emt 0:00:00]} 54. e4 {[%emt 0:01:04]} (54. Nd4 $142) 54... Rh5 {[%emt 0:00:00]} 55. Rg8 {[%emt 0:03:32]} Rc7 {[%emt 0:00:00] Threatens to win with ...Be6.} 56. Nd4 {[%emt 0:00:20] Wards off Be6} Rxh6 {[%emt 0:00:00]} 57. Rf8 {[%emt 0:00:18]} Rh2+ {[%emt 0:00:00]} 58. Kc3 {[%emt 0:00:39]} (58. Kb1 $142 Rd2 59. Nc2) 58... Kc5 {[%emt 0:00:00]} 59. Rxf6 $2 {[%emt 0:00:53] [#]} (59. Nf3 b4+ 60. Rxb4) 59... b4+ $1 {[%emt 0:00:00][%mdl 512]} 60. Kd3 {[%emt 0:00:07]} Rh3+ {[%emt 0:00:00] Weighted Error Value: White=0.21 (precise) /Black=0.10 (very precise)} 0-1